fUST/lending_fUST_20260618
["ID","MTS","AMOUNT","RATE_DAILY","PERIOD"]
[425362077,1781722258000,-355.58863797,0.00018338,2]
[425362076,1781722258000,-152.92111919,0.00018338,2]
[425362071,1781722258000,-335.58519002,0.00018335,2]
[425362072,1781722258000,-761.91261856,0.00018335,2]
[425362069,1781722258000,-321.6505597,0.00018335,2]
[425362067,1781722258000,-359.06882158,0.00018335,2]
[425362064,1781722258000,-423.97947007,0.00018335,2]
[425362065,1781722258000,-334.63182759,0.00018335,2]
[425362070,1781722258000,-364.31504978,0.00018335,2]
[425362073,1781722258000,-351.99697995,0.00018336,2]
[425362068,1781722258000,-309.17926441,0.00018335,2]
[425362075,1781722258000,-174.27142744,0.00018338,2]
[425362091,1781722258000,-500.0,0.00018356,2]
[425362080,1781722258000,-3163.57829273,0.00018338,2]
[425362081,1781722258000,-331.98646307,0.00018338,2]
[425362079,1781722258000,-328.99110345,0.00018338,2]
[425362085,1781722258000,-500.0,0.00018356,2]
[425362083,1781722258000,-1636.36363636,0.00018356,2]
[425362086,1781722258000,-1303.36,0.00018356,2]
[425362087,1781722258000,-500.0,0.00018356,2]
[425362090,1781722258000,-514.0129903,0.00018356,2]
[425362089,1781722258000,-500.0,0.00018356,2]
[425362088,1781722258000,-500.0,0.00018356,2]
[425362084,1781722258000,-664.4334576,0.00018356,2]
[425362093,1781722258000,-472.64586246,0.00018356,2]
[425362063,1781722258000,-662.10954574,0.00018335,2]
[425362074,1781722258000,-356.04649215,0.00018338,2]
[425362066,1781722258000,-334.99148997,0.00018335,2]
[425362034,1781722258000,-2258.76,0.00018082,2]
[425362061,1781722258000,-320.16054125,0.00018335,2]
[425362095,1781722258000,-500.0,0.00018356,2]
[425362036,1781722258000,-921.73,0.00018082,2]
[425362033,1781722258000,-615.46,0.00018082,2]
[425362037,1781722258000,-500.0,0.00018082,2]
[425362042,1781722258000,-398.00079686,0.00018335,2]
[425362039,1781722258000,-2162.59,0.00018082,2]
[425362041,1781722258000,-720.0,0.00018329,2]
[425362035,1781722258000,-500.0,0.00018082,2]
[425362043,1781722258000,-194.60411199,0.00018335,2]
[425362038,1781722258000,-2221.85,0.00018082,2]
[425362040,1781722258000,-500.0,0.00018082,2]
[425362044,1781722258000,-312.85639252,0.00018335,2]
[425362056,1781722258000,-1285.20512482,0.00018335,2]
[425362062,1781722258000,-168.71403199,0.00018335,2]
[425362048,1781722258000,-339.85357501,0.00018335,2]
[425362057,1781722258000,-320.22193374,0.00018335,2]
[425362045,1781722258000,-173.11170163,0.00018335,2]
[425362047,1781722258000,-387.80990035,0.00018335,2]
[425362046,1781722258000,-699.57793505,0.00018335,2]
[425362052,1781722258000,-214.16294337,0.00018335,2]
[425362053,1781722258000,-301.15214384,0.00018335,2]
[425362049,1781722258000,-344.38034983,0.00018335,2]
[425362050,1781722258000,-348.29755916,0.00018335,2]
[425362051,1781722258000,-2336.85412394,0.00018335,2]
[425362054,1781722258000,-315.54049541,0.00018335,2]
[425362058,1781722258000,-229.0719303,0.00018335,2]
[425362060,1781722258000,-805.59829535,0.00018335,2]
[425362059,1781722258000,-329.57706142,0.00018335,2]
[425362055,1781722258000,-204.15951704,0.00018335,2]
[425362094,1781722258000,-500.0,0.00018356,2]
[425362101,1781722258000,-812.0,0.00018356,2]
[425362096,1781722258000,-500.0,0.00018356,2]
[425362125,1781722258000,-500.0,0.00018356,2]
[425362123,1781722258000,-500.0,0.00018356,2]
[425362127,1781722258000,-513.66897129,0.00018356,2]
[425362126,1781722258000,-500.0,0.00018356,2]
[425362134,1781722258000,-500.0,0.00018356,2]
[425362135,1781722258000,-500.0,0.00018356,2]
[425362139,1781722258000,-519.39,0.00018356,2]
[425362143,1781722258000,-500.0,0.00018356,2]
[425362136,1781722258000,-500.0,0.00018356,2]
[425362144,1781722258000,-500.0,0.00018356,2]
[425362137,1781722258000,-500.0,0.00018356,2]
[425362142,1781722258000,-1850.59,0.00018356,2]
[425362146,1781722258000,-13266.56,0.00018356,2]
[425362129,1781722258000,-500.0,0.00018356,2]
[425362145,1781722258000,-500.0,0.00018356,2]
[425362138,1781722258000,-732.78,0.00018356,2]
[425362141,1781722258000,-1137.24,0.00018356,2]
[425362158,1781722258000,-500.0,0.00018356,2]
[425362148,1781722258000,-500.0,0.00018356,2]
[425362147,1781722258000,-859.62,0.00018356,2]
[425362150,1781722258000,-588.0,0.00018356,2]
[425362149,1781722258000,-1380.44,0.00018356,2]
[425362153,1781722258000,-500.0,0.00018356,2]
[425362154,1781722258000,-873.43,0.00018356,2]
[425362155,1781722258000,-500.0,0.00018356,2]
[425362152,1781722258000,-500.0,0.00018356,2]
[425362151,1781722258000,-804.99,0.00018356,2]
[425362092,1781722258000,-500.0,0.00018356,2]
[425362140,1781722258000,-975.4,0.00018356,2]
[425362124,1781722258000,-500.0,0.00018356,2]
[425362157,1781722258000,-514.44886673,0.00018356,2]
[425362121,1781722258000,-1893.11,0.00018356,2]
[425362128,1781722258000,-500.0,0.00018356,2]
[425362097,1781722258000,-500.0,0.00018356,2]
[425362098,1781722258000,-514.75,0.00018356,2]
[425362100,1781722258000,-500.0,0.00018356,2]
[425362099,1781722258000,-500.0,0.00018356,2]
[425362106,1781722258000,-1358.43,0.00018356,2]
[425362156,1781722258000,-522.81,0.00018356,2]
[425362105,1781722258000,-500.0,0.00018356,2]
[425362103,1781722258000,-552.9,0.00018356,2]
[425362102,1781722258000,-659.66,0.00018356,2]
[425362104,1781722258000,-693.75,0.00018356,2]
[425362108,1781722258000,-754.09,0.00018356,2]
[425362111,1781722258000,-500.0,0.00018356,2]
[425362110,1781722258000,-500.0,0.00018356,2]
[425362107,1781722258000,-500.0,0.00018356,2]
[425362109,1781722258000,-500.0,0.00018356,2]
[425362112,1781722258000,-500.0,0.00018356,2]
[425362132,1781722258000,-500.0,0.00018356,2]
[425362133,1781722258000,-3478.92,0.00018356,2]
[425362131,1781722258000,-500.0,0.00018356,2]
[425362122,1781722258000,-500.0,0.00018356,2]
[425362118,1781722258000,-500.0,0.00018356,2]
[425362130,1781722258000,-500.0,0.00018356,2]
[425362115,1781722258000,-501.69003301,0.00018356,2]
[425362119,1781722258000,-588.06,0.00018356,2]
[425362116,1781722258000,-500.0,0.00018356,2]
[425362114,1781722258000,-500.0,0.00018356,2]
[425362117,1781722258000,-682.69,0.00018356,2]
[425362113,1781722258000,-500.0,0.00018356,2]
[425362120,1781722258000,-500.0,0.00018356,2]
[425362200,1781722259000,-313.88418979,0.00018385,2]
[425362197,1781722259000,-394.03575092,0.00018385,2]
[425362196,1781722259000,-332.6724515,0.00018385,2]
[425362198,1781722259000,-301.01082759,0.00018385,2]
[425362194,1781722259000,-304.90168451,0.00018385,2]
[425362188,1781722259000,-668.11248168,0.00018385,2]
[425362186,1781722259000,-373.98789449,0.00018385,2]
[425362192,1781722259000,-328.82658018,0.00018385,2]
[425362199,1781722259000,-364.94003491,0.00018385,2]
[425362190,1781722259000,-306.94365692,0.00018385,2]
[425362195,1781722259000,-313.7427929,0.00018385,2]
[425362189,1781722259000,-318.54151253,0.00018385,2]
[425362208,1781722259000,-351.55909753,0.00018385,2]
[425362203,1781722259000,-327.54731038,0.00018385,2]
[425362204,1781722259000,-389.49881395,0.00018385,2]
[425362205,1781722259000,-212.19285474,0.00018385,2]
[425362202,1781722259000,-395.6158231,0.00018385,2]
[425362210,1781722259000,-771.71907191,0.00018385,2]
[425362211,1781722259000,-870.84799583,0.00018385,2]
[425362207,1781722259000,-345.45454545,0.00018385,2]
[425362212,1781722259000,-390.99515923,0.00018385,2]
[425362206,1781722259000,-312.98072049,0.00018385,2]
[425362209,1781722259000,-215.08417787,0.00018385,2]
[425362222,1781722259000,-755.76157017,0.00018385,2]
[425362191,1781722259000,-403.09275282,0.00018385,2]
[425362214,1781722259000,-317.90829513,0.00018385,2]
[425362201,1781722259000,-347.99623461,0.00018385,2]
[425362193,1781722259000,-152.25072746,0.00018385,2]
[425362168,1781722259000,-500.0,0.00018356,2]
[425362179,1781722259000,-921.73,0.00018356,2]
[425362220,1781722259000,-303.3039407,0.00018385,2]
[425362159,1781722259000,-500.0,0.00018356,2]
[425362160,1781722259000,-760.15,0.00018356,2]
[425362161,1781722259000,-647.98,0.00018356,2]
[425362171,1781722259000,-701.31,0.00018356,2]
[425362164,1781722259000,-500.0,0.00018356,2]
[425362163,1781722259000,-838.6,0.00018356,2]
[425362170,1781722259000,-500.0,0.00018356,2]
[425362162,1781722259000,-1185.06,0.00018356,2]
[425362166,1781722259000,-839.35,0.00018356,2]
[425362172,1781722259000,-500.0,0.00018356,2]
[425362165,1781722259000,-840.76,0.00018356,2]
[425362187,1781722259000,-3058.16329225,0.00018385,2]
[425362167,1781722259000,-1892.21,0.00018356,2]
[425362174,1781722259000,-500.0,0.00018356,2]
[425362175,1781722259000,-1576.6,0.00018356,2]
[425362176,1781722259000,-615.46,0.00018356,2]
[425362184,1781722259000,-368.43073911,0.00018385,2]
[425362185,1781722259000,-188.05354406,0.00018385,2]
[425362183,1781722259000,-500.0,0.00018356,2]
[425362173,1781722259000,-656.06,0.00018356,2]
[425362181,1781722259000,-2221.85,0.00018356,2]
[425362182,1781722259000,-2162.59,0.00018356,2]
[425362178,1781722259000,-500.0,0.00018356,2]
[425362177,1781722259000,-2258.76,0.00018356,2]
[425362180,1781722259000,-500.0,0.00018356,2]
[425362169,1781722259000,-2335.76,0.00018356,2]
[425362213,1781722259000,-377.68628956,0.00018385,2]
[425362224,1781722259000,-165.57765424,0.000184,2]
[425362223,1781722259000,-165.57765425,0.000184,2]
[425362246,1781722259000,-2189.316497,0.00018584,2]
[425362248,1781722259000,-321.936616,0.00018584,2]
[425362247,1781722259000,-1514.958849,0.00018584,2]
[425362252,1781722259000,-1345.151771,0.00018584,2]
[425362254,1781722259000,-1303.36,0.0001863,2]
[425362255,1781722259000,-515.03832094,0.0001863,2]
[425362253,1781722259000,-500.0,0.0001863,2]
[425362259,1781722259000,-500.0,0.0001863,2]
[425362256,1781722259000,-647.45977186,0.0001863,2]
[425362260,1781722259000,-500.0,0.0001863,2]
[425362257,1781722259000,-500.0,0.0001863,2]
[425362264,1781722259000,-514.75,0.0001863,2]
[425362245,1781722259000,-409.101216,0.00018584,2]
[425362262,1781722259000,-500.0,0.0001863,2]
[425362261,1781722259000,-500.0,0.0001863,2]
[425362266,1781722259000,-604.57618845,0.0001863,2]
[425362265,1781722259000,-500.0,0.0001863,2]
[425362268,1781722259000,-659.66,0.0001863,2]
[425362267,1781722259000,-812.0,0.0001863,2]
[425362274,1781722259000,-754.09,0.0001863,2]
[425362269,1781722259000,-552.9,0.0001863,2]
[425362275,1781722259000,-500.0,0.0001863,2]
[425362270,1781722259000,-693.75,0.0001863,2]
[425362272,1781722259000,-1358.43,0.0001863,2]
[425362273,1781722259000,-500.0,0.0001863,2]
[425362271,1781722259000,-500.0,0.0001863,2]
[425362258,1781722259000,-500.0,0.0001863,2]
[425362242,1781722259000,-1767.45199,0.00018584,2]
[425362263,1781722259000,-500.0,0.0001863,2]
[425362243,1781722259000,-389.712745,0.00018584,2]
[425362240,1781722259000,-192.630875,0.00018584,2]
[425362219,1781722259000,-551.15916361,0.00018385,2]
[425362218,1781722259000,-349.75307432,0.00018385,2]
[425362216,1781722259000,-384.70390183,0.00018385,2]
[425362215,1781722259000,-397.38407453,0.00018385,2]
[425362217,1781722259000,-375.2512549,0.00018385,2]
[425362221,1781722259000,-733.84322256,0.00018385,2]
[425362235,1781722259000,-2468.668225,0.00018584,2]
[425362232,1781722259000,-202.992627,0.00018584,2]
[425362230,1781722259000,-176.912046,0.00018584,2]
[425362233,1781722259000,-3219.857961,0.00018584,2]
[425362226,1781722259000,-210.609579,0.00018584,2]
[425362225,1781722259000,-165.57765424,0.000184,2]
[425362237,1781722259000,-326.144771,0.00018584,2]
[425362241,1781722259000,-178.000853,0.00018584,2]
[425362244,1781722259000,-439.559917,0.00018584,2]
[425362236,1781722259000,-190.101397,0.00018584,2]
[425362238,1781722259000,-199.521302,0.00018584,2]
[425362251,1781722259000,-1889.212332,0.00018584,2]
[425362250,1781722259000,-354.349351,0.00018584,2]
[425362249,1781722259000,-377.111958,0.00018584,2]
[425362239,1781722259000,-2422.019231,0.00018584,2]
[425362227,1781722259000,-364.615624,0.00018584,2]
[425362228,1781722259000,-225.079141,0.00018584,2]
[425362234,1781722259000,-184.604589,0.00018584,2]
[425362229,1781722259000,-3709.56365,0.00018584,2]
[425362231,1781722259000,-348.15373,0.00018584,2]
[425362315,1781722260000,-804.99,0.0001863,2]
[425362324,1781722260000,-647.98,0.0001863,2]
[425362325,1781722260000,-1185.06,0.0001863,2]
[425362327,1781722260000,-500.0,0.0001863,2]
[425362314,1781722260000,-588.0,0.0001863,2]
[425362307,1781722260000,-500.0,0.0001863,2]
[425362313,1781722260000,-1380.44,0.0001863,2]
[425362309,1781722260000,-500.0,0.0001863,2]
[425362311,1781722260000,-859.62,0.0001863,2]
[425362310,1781722260000,-13266.56,0.0001863,2]
[425362326,1781722260000,-838.6,0.0001863,2]
[425362312,1781722260000,-500.0,0.0001863,2]
[425362317,1781722260000,-500.0,0.0001863,2]
[425362336,1781722260000,-656.06,0.0001863,2]
[425362316,1781722260000,-455.72950977,0.0001863,2]
[425362320,1781722260000,-522.81,0.0001863,2]
[425362319,1781722260000,-500.0,0.0001863,2]
[425362321,1781722260000,-213.88235918,0.0001863,2]
[425362322,1781722260000,-500.0,0.0001863,2]
[425362323,1781722260000,-760.15,0.0001863,2]
[425362328,1781722260000,-840.76,0.0001863,2]
[425362334,1781722260000,-701.31,0.0001863,2]
[425362330,1781722260000,-1892.21,0.0001863,2]
[425362331,1781722260000,-500.0,0.0001863,2]
[425362333,1781722260000,-500.0,0.0001863,2]
[425362332,1781722260000,-2335.76,0.0001863,2]
[425362308,1781722260000,-500.0,0.0001863,2]
[425362318,1781722260000,-873.43,0.0001863,2]
[425362306,1781722260000,-1850.59,0.0001863,2]
[425362277,1781722260000,-500.0,0.0001863,2]
[425362304,1781722260000,-975.4,0.0001863,2]
[425362276,1781722260000,-500.0,0.0001863,2]
[425362337,1781722260000,-500.0,0.0001863,2]
[425362278,1781722260000,-500.0,0.0001863,2]
[425362282,1781722260000,-682.69,0.0001863,2]
[425362280,1781722260000,-500.0,0.0001863,2]
[425362281,1781722260000,-500.0,0.0001863,2]
[425362286,1781722260000,-1893.11,0.0001863,2]
[425362279,1781722260000,-500.0,0.0001863,2]
[425362283,1781722260000,-500.0,0.0001863,2]
[425362285,1781722260000,-500.0,0.0001863,2]
[425362287,1781722260000,-500.0,0.0001863,2]
[425362284,1781722260000,-588.06,0.0001863,2]
[425362289,1781722260000,-500.0,0.0001863,2]
[425362305,1781722260000,-1137.24,0.0001863,2]
[425362288,1781722260000,-533.9443902,0.0001863,2]
[425362292,1781722260000,-500.0,0.0001863,2]
[425362301,1781722260000,-500.0,0.0001863,2]
[425362302,1781722260000,-732.78,0.0001863,2]
[425362291,1781722260000,-500.0,0.0001863,2]
[425362300,1781722260000,-500.0,0.0001863,2]
[425362293,1781722260000,-500.0,0.0001863,2]
[425362298,1781722260000,-500.0,0.0001863,2]
[425362296,1781722260000,-363.43732519,0.0001863,2]
[425362297,1781722260000,-3478.92,0.0001863,2]
[425362294,1781722260000,-500.0,0.0001863,2]
[425362295,1781722260000,-500.0,0.0001863,2]
[425362299,1781722260000,-500.0,0.0001863,2]
[425362303,1781722260000,-519.39,0.0001863,2]
[425362290,1781722260000,-500.0,0.0001863,2]
[425362335,1781722260000,-500.0,0.0001863,2]
[425362398,1781722260000,-534.06973823,0.00018863,2]
[425362339,1781722260000,-615.46,0.0001863,2]
[425362376,1781722260000,-480.33290062,0.0001886,2]
[425362375,1781722260000,-305.84223838,0.0001886,2]
[425362370,1781722260000,-428.32588674,0.0001886,2]
[425362377,1781722260000,-458.1438606,0.0001886,2]
[425362372,1781722260000,-473.31074311,0.0001886,2]
[425362368,1781722260000,-516.57052475,0.0001886,2]
[425362374,1781722260000,-1927.80768723,0.0001886,2]
[425362378,1781722260000,-494.36559212,0.0001886,2]
[425362381,1781722260000,-337.42806397,0.0001886,2]
[425362382,1781722260000,-352.51542291,0.0001886,2]
[425362379,1781722260000,-644.47863628,0.0001886,2]
[425362380,1781722260000,-480.24081188,0.0001886,2]
[425362383,1781722260000,-194.05599908,0.0001886,2]
[425362373,1781722260000,-408.31903407,0.0001886,2]
[425362387,1781722260000,-635.9692051,0.0001886,2]
[425362386,1781722260000,-176.04464626,0.0001886,2]
[425362385,1781722260000,-993.16431862,0.0001886,2]
[425362389,1781722260000,-502.48723495,0.0001886,2]
[425362384,1781722260000,-533.38295696,0.0001886,2]
[425362390,1781722260000,-538.60323237,0.0001886,2]
[425362392,1781722260000,-482.47583955,0.0001886,2]
[425362391,1781722260000,-463.76889661,0.0001886,2]
[425362393,1781722260000,-546.47257468,0.0001886,2]
[425362395,1781722260000,-1142.86892784,0.0001886,2]
[425362394,1781722260000,-503.37778504,0.0001886,2]
[425362396,1781722260000,-154.75697055,0.0001886,2]
[425362329,1781722260000,-839.35,0.0001863,2]
[425362397,1781722260000,-527.99546992,0.00018861,2]
[425362388,1781722260000,-501.94774138,0.0001886,2]
[425362369,1781722260000,-3505.28118592,0.0001886,2]
[425362399,1781722260000,-154.3781937,0.00018863,2]
[425362367,1781722260000,-522.44633874,0.0001886,2]
[425362371,1781722260000,-451.72821576,0.0001886,2]
[425362338,1781722260000,-1576.6,0.0001863,2]
[425362349,1781722260000,-958.0,0.00018815,2]
[425362348,1781722260000,-1841.0,0.00018815,2]
[425362350,1781722260000,-1418.0,0.00018815,2]
[425362347,1781722260000,-210.0,0.00018719,2]
[425362342,1781722260000,-921.73,0.0001863,2]
[425362345,1781722260000,-2162.59,0.0001863,2]
[425362346,1781722260000,-500.0,0.0001863,2]
[425362340,1781722260000,-2258.76,0.0001863,2]
[425362344,1781722260000,-2221.85,0.0001863,2]
[425362343,1781722260000,-500.0,0.0001863,2]
[425362354,1781722260000,-279.91390556,0.00018859,2]
[425362357,1781722260000,-597.00119528,0.0001886,2]
[425362341,1781722260000,-500.0,0.0001863,2]
[425362361,1781722260000,-167.495515,0.0001886,2]
[425362365,1781722260000,-509.78036252,0.0001886,2]
[425362366,1781722260000,-274.04088951,0.0001886,2]
[425362362,1781722260000,-1049.36690257,0.0001886,2]
[425362351,1781722260000,-745.0,0.00018815,2]
[425362355,1781722260000,-177.62692917,0.0001886,2]
[425362356,1781722260000,-178.2339935,0.0001886,2]
[425362358,1781722260000,-389.20822398,0.0001886,2]
[425362364,1781722260000,-581.71485053,0.0001886,2]
[425362360,1781722260000,-346.22340325,0.0001886,2]
[425362359,1781722260000,-469.28458879,0.0001886,2]
[425362363,1781722260000,-348.54285487,0.0001886,2]
[425362352,1781722260000,-186.0,0.00018815,2]
[425362353,1781722260000,-445.0,0.00018815,2]
[425362439,1781722261000,-500.0,0.00018904,2]
[425362440,1781722261000,-500.0,0.00018904,2]
[425362437,1781722261000,-1893.11,0.00018904,2]
[425362436,1781722261000,-500.0,0.00018904,2]
[425362432,1781722261000,-500.0,0.00018904,2]
[425362442,1781722261000,-500.0,0.00018904,2]
[425362441,1781722261000,-500.0,0.00018904,2]
[425362435,1781722261000,-588.06,0.00018904,2]
[425362433,1781722261000,-682.69,0.00018904,2]
[425362431,1781722261000,-500.0,0.00018904,2]
[425362434,1781722261000,-500.0,0.00018904,2]
[425362444,1781722261000,-500.0,0.00018904,2]
[425362447,1781722261000,-500.0,0.00018904,2]
[425362438,1781722261000,-500.0,0.00018904,2]
[425362445,1781722261000,-500.0,0.00018904,2]
[425362452,1781722261000,-519.39,0.00018904,2]
[425362446,1781722261000,-3478.92,0.00018904,2]
[425362448,1781722261000,-500.0,0.00018904,2]
[425362453,1781722261000,-975.4,0.00018904,2]
[425362455,1781722261000,-1850.59,0.00018904,2]
[425362450,1781722261000,-500.0,0.00018904,2]
[425362457,1781722261000,-514.11801246,0.00018904,2]
[425362456,1781722261000,-500.0,0.00018904,2]
[425362449,1781722261000,-500.0,0.00018904,2]
[425362427,1781722261000,-500.0,0.00018904,2]
[425362454,1781722261000,-1137.24,0.00018904,2]
[425362443,1781722261000,-500.0,0.00018904,2]
[425362429,1781722261000,-500.0,0.00018904,2]
[425362411,1781722261000,-634.91247879,0.00018904,2]
[425362428,1781722261000,-500.0,0.00018904,2]
[425362451,1781722261000,-732.78,0.00018904,2]
[425362402,1781722261000,-4745.3674391,0.00018863,2]
[425362401,1781722261000,-493.48665517,0.00018863,2]
[425362400,1781722261000,-251.67331764,0.00018863,2]
[425362403,1781722261000,-497.9796946,0.00018863,2]
[425362404,1781722261000,-454.45299648,0.00018874,2]
[425362413,1781722261000,-643.04769812,0.00018904,2]
[425362408,1781722261000,-1303.36,0.00018904,2]
[425362406,1781722261000,-442.9556384,0.00018881,2]
[425362414,1781722261000,-500.0,0.00018904,2]
[425362409,1781722261000,-500.0,0.00018904,2]
[425362410,1781722261000,-500.0,0.00018904,2]
[425362415,1781722261000,-500.0,0.00018904,2]
[425362405,1781722261000,-1454.54545455,0.00018881,2]
[425362407,1781722261000,-500.0,0.00018904,2]
[425362412,1781722261000,-500.0,0.00018904,2]
[425362417,1781722261000,-500.0,0.00018904,2]
[425362416,1781722261000,-514.75,0.00018904,2]
[425362421,1781722261000,-693.75,0.00018904,2]
[425362418,1781722261000,-812.0,0.00018904,2]
[425362420,1781722261000,-552.9,0.00018904,2]
[425362419,1781722261000,-659.66,0.00018904,2]
[425362422,1781722261000,-429.62568189,0.00018904,2]
[425362425,1781722261000,-500.0,0.00018904,2]
[425362426,1781722261000,-754.09,0.00018904,2]
[425362423,1781722261000,-1358.43,0.00018904,2]
[425362424,1781722261000,-500.0,0.00018904,2]
[425362430,1781722261000,-173.99142073,0.00018904,2]
[425362459,1781722261000,-13266.56,0.00018904,2]
[425362468,1781722261000,-522.81,0.00018904,2]
[425362458,1781722261000,-632.48493503,0.00018904,2]
[425362494,1781722261000,-552.64610867,0.00018911,2]
[425362492,1781722261000,-2162.59,0.00018904,2]
[425362493,1781722261000,-500.0,0.00018904,2]
[425362496,1781722261000,-2718.36737089,0.00018911,2]
[425362495,1781722261000,-376.10708812,0.00018911,2]
[425362498,1781722261000,-1002.16872252,0.00018911,2]
[425362497,1781722261000,-560.98184173,0.00018911,2]
[425362510,1781722261000,-470.61418935,0.00018911,2]
[425362500,1781722261000,-477.81226879,0.00018911,2]
[425362499,1781722261000,-199.54906233,0.00018911,2]
[425362502,1781722261000,-460.41548537,0.00018911,2]
[425362509,1781722261000,-165.32356982,0.00018911,2]
[425362491,1781722261000,-2221.85,0.00018904,2]
[425362505,1781722261000,-493.23987027,0.00018911,2]
[425362501,1781722261000,-191.90882408,0.00018911,2]
[425362503,1781722261000,-604.63912923,0.00018911,2]
[425362507,1781722261000,-304.50145492,0.00018911,2]
[425362504,1781722261000,-270.70823945,0.00018911,2]
[425362506,1781722261000,-499.00867725,0.00018911,2]
[425362511,1781722261000,-591.05362638,0.00018911,2]
[425362515,1781722261000,-521.99435192,0.00018911,2]
[425362517,1781722261000,-491.32096557,0.00018911,2]
[425362516,1781722261000,-593.42373465,0.00018911,2]
[425362514,1781722261000,-470.82628468,0.00018911,2]
[425362513,1781722261000,-547.41005236,0.00018911,2]
[425362518,1781722261000,-584.24822093,0.00018911,2]
[425362508,1781722261000,-457.35252676,0.00018911,2]
[425362487,1781722261000,-2258.76,0.00018904,2]
[425362512,1781722261000,-451.51624139,0.00018911,2]
[425362489,1781722261000,-921.73,0.00018904,2]
[425362469,1781722261000,-500.0,0.00018904,2]
[425362471,1781722261000,-647.98,0.00018904,2]
[425362467,1781722261000,-500.0,0.00018904,2]
[425362470,1781722261000,-760.15,0.00018904,2]
[425362461,1781722261000,-513.43729577,0.00018904,2]
[425362466,1781722261000,-873.43,0.00018904,2]
[425362465,1781722261000,-500.0,0.00018904,2]
[425362490,1781722261000,-500.0,0.00018904,2]
[425362460,1781722261000,-859.62,0.00018904,2]
[425362463,1781722261000,-588.0,0.00018904,2]
[425362464,1781722261000,-804.99,0.00018904,2]
[425362481,1781722261000,-701.31,0.00018904,2]
[425362479,1781722261000,-2335.76,0.00018904,2]
[425362462,1781722261000,-1380.44,0.00018904,2]
[425362482,1781722261000,-313.3100131,0.00018904,2]
[425362480,1781722261000,-472.93557955,0.00018904,2]
[425362486,1781722261000,-615.46,0.00018904,2]
[425362477,1781722261000,-1892.21,0.00018904,2]
[425362478,1781722261000,-500.0,0.00018904,2]
[425362476,1781722261000,-839.35,0.00018904,2]
[425362475,1781722261000,-840.76,0.00018904,2]
[425362488,1781722261000,-511.52418483,0.00018904,2]
[425362474,1781722261000,-500.0,0.00018904,2]
[425362472,1781722261000,-1185.06,0.00018904,2]
[425362483,1781722261000,-656.06,0.00018904,2]
[425362484,1781722261000,-500.0,0.00018904,2]
[425362485,1781722261000,-1576.6,0.00018904,2]
[425362473,1781722261000,-838.6,0.00018904,2]
[425362556,1781722262000,-552.9,0.00019178,2]
[425362554,1781722262000,-812.0,0.00019178,2]
[425362555,1781722262000,-659.66,0.00019178,2]
[425362550,1781722262000,-500.0,0.00019178,2]
[425362561,1781722262000,-500.0,0.00019178,2]
[425362559,1781722262000,-500.0,0.00019178,2]
[425362560,1781722262000,-754.09,0.00019178,2]
[425362552,1781722262000,-514.75,0.00019178,2]
[425362558,1781722262000,-1358.43,0.00019178,2]
[425362546,1781722262000,-1303.36,0.00019178,2]
[425362551,1781722262000,-500.0,0.00019178,2]
[425362557,1781722262000,-693.75,0.00019178,2]
[425362568,1781722262000,-500.0,0.00019178,2]
[425362562,1781722262000,-500.0,0.00019178,2]
[425362566,1781722262000,-500.0,0.00019178,2]
[425362564,1781722262000,-500.0,0.00019178,2]